bitfinex/quotes_ETHUSD_20220117
["timestamp","ask_amount","ask_price","bid_price","bid_amount"]
[1642436483267,0.79906011,3221.6,3220.6,0.00625266]
[1642436483471,2.98587191,3221.5,3220.6,0.00625266]
[1642436483667,3.28587191,3221.5,3220.6,0.00625266]
[1642436483869,3.28587191,3221.5,3220.1,0.00909478]
[1642436483870,5.00030884,3221.4,3220.1,0.00909478]
[1642436484066,5.00030884,3221.4,3220.0,0.0096632]
[1642436484067,0.012475,3221.2,3220.0,0.0096632]
[1642436484267,0.77623,3221.0,3219.8,0.01080005]
[1642436484466,0.02004236,3220.9,3219.8,0.01080005]
[1642436484665,1.25119362,3220.0,3219.8,0.01080005]
[1642436484868,1.141275,3221.2,3220.0,0.77611]
[1642436485069,0.012475,3221.2,3220.0,0.77611]
[1642436485266,0.012475,3221.2,3220.1,0.00909478]
[1642436485916,1.13834212,3220.5,3220.1,0.00909478]
[1642436486119,1.13834212,3220.5,3220.2,0.77607]
[1642436486318,1.13834212,3220.5,3219.9,0.01023162]
[1642436486519,1.13834212,3220.5,3220.3,0.00795793]
[1642436486721,1.13834212,3220.5,3219.9,0.01023162]
[1642436487720,0.03456398,3220.4,3219.9,0.01023162]
[1642436488120,1.13834212,3220.5,3219.9,0.01023162]
[1642436488321,1.13834212,3220.5,3219.7,0.01136847]
[1642436488727,1.13834212,3220.5,3219.9,0.77616]
[1642436489023,1.13834212,3220.5,3220.0,0.0096632]
[1642436489424,1.13834212,3220.5,3220.0,1.5617732]
[1642436489688,3.941475,3221.4,3220.1,0.00909478]
[1642436489891,3.941475,3221.4,3220.4,0.77598]
[1642436490091,3.941475,3221.4,3220.4,0.76498]
[1642436490290,3.941475,3221.4,3220.5,0.00682108]
[1642436491296,1.54051206,3221.1,3220.5,1.12702537]
[1642436491491,1.54051206,3221.1,3220.5,1.73384645]
[1642436491690,1.23335005,3220.7,3220.6,1.55803266]
[1642436492190,1.23335005,3220.7,3220.6,1.85803266]
[1642436492390,1.23335005,3220.7,3220.6,1.55803266]
[1642436493193,1.23335005,3220.7,3220.6,0.00625266]
[1642436494019,1.23335005,3220.7,3220.2,0.00852635]
[1642436494221,0.01914698,3220.6,3220.0,0.0096632]
[1642436494618,1.23335005,3220.7,3220.0,0.0096632]
[1642436494619,1.28827527,3220.5,3220.0,0.0096632]
[1642436494820,1.28827527,3220.5,3219.6,0.01193689]
[1642436495020,1.28827527,3220.5,3219.5,0.01250532]
[1642436495421,1.29216815,3219.6,3219.5,0.01250532]
[1642436495620,1.39072283,3220.0,3219.5,0.01250532]
[1642436495820,1.39072283,3220.0,3219.5,0.77623]
[1642436496019,1.39072283,3220.0,3219.5,0.78873532]
[1642436496221,1.39072283,3220.0,3219.6,0.01193689]
[1642436496621,1.52627321,3219.7,3219.5,0.01250532]
[1642436497864,1.52627321,3219.7,3219.4,0.01307374]
[1642436498065,1.52627321,3219.7,3219.3,0.01364216]
[1642436498266,1.52627321,3219.7,3219.4,0.77629]
[1642436498466,1.52627321,3219.7,3219.4,1.88214652]
[1642436498666,1.52627321,3219.7,3219.5,0.01250532]
[1642436498865,1.39072283,3220.0,3219.5,0.01250532]
[1642436498866,1.39072283,3220.0,3219.5,1.56489532]
[1642436499265,1.39072283,3220.0,3219.6,0.01193689]
[1642436499665,3.8909,3220.5,3219.6,0.01193689]
[1642436500068,1.16155732,3220.3,3219.6,0.01193689]
[1642436500467,1.16155732,3220.3,3219.7,0.77616]
[1642436500670,3.8909,3220.5,3219.9,2.6884398]
[1642436500940,1.40370539,3221.1,3219.9,2.6884398]
[1642436501128,1.40370539,3221.1,3220.0,0.0096632]
[1642436501532,3.7022,3221.2,3220.0,0.0096632]
[1642436501734,3.7022,3221.2,3220.4,1.30657298]
[1642436501735,1.25402101,3221.0,3220.4,1.30657298]
[1642436501934,1.26321246,3220.9,3220.4,1.30657298]
[1642436502232,1.26321246,3220.9,3220.5,0.00682108]
[1642436502833,1.26321246,3220.9,3220.5,0.78281108]
[1642436503034,2.65467088,3220.9,3220.5,1.38281108]
[1642436503238,1.40370539,3221.7,3220.7,13.85]
[1642436503437,1.40370539,3221.7,3220.9,1.55139]
[1642436503635,1.40370539,3221.7,3221.0,0.41845261]
[1642436503936,1.40370539,3221.7,3221.1,1.48702947]
[1642436504133,1.40370539,3221.7,3221.6,1.14569112]
[1642436504336,1.40370539,3221.7,3221.6,1.44569112]
[1642436504561,1.40370539,3221.7,3221.6,2.47269112]
[1642436504964,3.98217232,3221.9,3221.6,2.47269112]
[1642436505163,3.98217232,3221.9,3221.6,3.24838112]
[1642436505962,3.98217232,3221.9,3221.6,1.80269]
[1642436506164,0.05360582,3221.8,3221.2,0.77869212]
[1642436506365,0.05360582,3221.8,3221.2,0.00284212]
[1642436506566,3.62140539,3222.8,3221.3,0.0022737]
[1642436506567,2.69723846,3222.3,3221.3,0.0022737]
[1642436506767,4.23943104,3222.5,3221.1,0.00341054]
[1642436506971,0.00170527,3222.0,3221.1,1.09351557]
[1642436507168,1.2683876,3221.7,3221.1,1.09351557]
[1642436507366,1.2683876,3221.7,3221.2,0.77869212]
[1642436507565,1.2683876,3221.7,3221.2,0.00284212]
[1642436507766,1.2683876,3221.7,3221.3,0.0022737]
[1642436507966,1.2683876,3221.7,3221.1,0.00341054]
[1642436508168,1.16800655,3221.3,3221.1,0.00341054]
[1642436508420,1.53551504,3221.2,3220.7,0.00568424]
[1642436508821,0.00113685,3221.9,3220.8,0.77594]
[1642436509224,0.00113685,3221.9,3220.9,0.00454739]
[1642436509420,0.00113685,3221.9,3221.0,1.55165]
[1642436509819,0.00113685,3221.9,3221.1,1.39211371]
[1642436510028,0.00113685,3221.9,3221.1,0.77930054]
[1642436510226,0.00113685,3221.9,3221.2,0.00284212]
[1642436510526,0.00113685,3221.9,3221.3,1.55144]
[1642436510722,0.00113685,3221.9,3221.3,1.85144]
[1642436510922,0.00113685,3221.9,3221.4,0.00170527]
[1642436511123,0.00113685,3221.9,3221.4,1.00170527]
[1642436511422,0.00113685,3221.9,3221.5,0.00113685]
[1642436512083,0.00113685,3221.9,3221.5,0.6980862]
[1642436512381,0.00113685,3221.9,3221.6,0.3]
[1642436512584,3.98217232,3222.9,3221.7,12.95]
[1642436512878,3.98217232,3222.9,3222.0,0.77547]
[1642436512879,0.00341054,3222.5,3222.0,0.77547]
[1642436513078,3.98217232,3222.9,3222.2,12.37603]
[1642436513279,3.98217232,3222.9,3222.7,1.17855714]
[1642436513483,0.00170527,3222.8,3222.7,1.17855714]
[1642436513685,0.00170527,3222.8,3222.7,1.47855714]
[1642436513887,3.98217232,3222.9,3222.7,3.92692714]
[1642436514283,0.0134284,3223.4,3222.7,3.92692714]
[1642436514683,0.0134284,3223.4,3222.7,1.14837]
[1642436514684,0.00113684,3223.0,3222.7,1.14837]
[1642436516520,0.0134284,3223.4,3222.8,13.25]
[1642436516720,0.0134284,3223.4,3222.9,0.373]
[1642436516921,0.00170527,3223.3,3222.9,0.373]
[1642436517120,0.00170527,3223.3,3223.0,1.12687163]
[1642436517321,0.00113685,3223.2,3223.0,2.90211163]
[1642436517627,0.0134284,3223.4,3223.1,15.47606389]
[1642436517820,0.0134284,3223.4,3223.2,3.16256539]
[1642436518021,1.40370539,3224.2,3223.5,1.55013]
[1642436518225,1.40370539,3224.2,3223.6,1.8456101]
[1642436518420,1.29726161,3224.4,3223.7,12.2]
[1642436518619,1.29726161,3224.4,3223.8,0.373]
[1642436518820,0.00113685,3224.3,3223.8,1.83658234]
[1642436519020,1.49655974,3224.8,3224.0,9.4]
[1642436519222,1.49655974,3224.8,3224.1,1.373]
[1642436519422,0.00170527,3224.6,3224.1,1.79973685]
[1642436519671,1.49655974,3224.8,3224.2,0.89574]
[1642436519871,2.94370868,3224.7,3224.3,0.373]
[1642436520071,2.94370868,3224.7,3224.3,0.49230527]
[1642436520274,2.94370868,3224.7,3224.4,0.00113685]
[1642436520471,1.6415493,3224.7,3224.4,0.00113685]
[1642436520672,2.88695468,3224.7,3224.4,0.00113685]
[1642436521276,2.88695468,3224.7,3224.4,1.55110685]
[1642436521478,2.88695468,3224.7,3224.4,0.00113685]
[1642436521677,1.48016366,3224.6,3224.4,0.00113685]
[1642436521876,1.48016366,3224.6,3224.0,0.00341054]
[1642436522076,1.48016366,3224.6,3224.0,0.12341054]
[1642436522278,2.88695468,3224.7,3224.4,0.77508]
[1642436522883,2.88695468,3224.7,3224.4,1.07508]
[1642436523079,1.6415493,3224.7,3224.4,1.07508]
[1642436523723,7.64952533,3225.8,3224.6,10.85]
[1642436523926,7.64952533,3225.8,3224.8,0.77481]
[1642436523927,3.9658,3225.4,3224.8,0.77481]
[1642436524124,7.64952533,3225.8,3224.9,0.6973442]
[1642436524125,0.00397896,3225.3,3224.9,0.6973442]
[1642436524323,0.00397896,3225.3,3224.9,1.5301442]
[1642436524622,0.00341054,3225.2,3224.9,1.5301442]
[1642436524823,0.00341054,3225.2,3225.0,1.51328981]
[1642436525024,0.00284212,3225.1,3225.0,3.06292981]
[1642436525626,7.4975,3226.2,3225.0,3.36292981]
[1642436525824,7.4975,3226.2,3225.2,0.6972824]
[1642436526025,0.00568423,3226.1,3225.2,0.6972824]
[1642436526226,0.00568423,3226.1,3225.4,0.77474]
[1642436526425,0.00511581,3226.0,3225.9,1.51675041]
[1642436526625,0.00511581,3226.0,3225.9,2.60505041]
[1642436528082,9.67063882,3227.3,3226.0,14.25]
[1642436528083,9.65772391,3227.3,3226.0,14.25]
[1642436528282,4.66154786,3227.5,3226.2,0.6970237]
[1642436528283,1.48952199,3227.5,3226.2,0.6970237]
[1642436528482,0.00682108,3227.2,3226.3,0.373]
[1642436528681,0.00682108,3227.2,3226.3,0.673]
[1642436528882,1.46937497,3227.0,3226.3,0.673]
[1642436529282,0.00511581,3226.9,3226.7,1.2639445]
[1642436529484,0.00511581,3226.9,3226.7,2.1076445]
[1642436529684,0.00454739,3226.8,3226.7,2.1076445]
[1642436530686,0.00454739,3226.8,3226.7,3.6564045]
[1642436531321,0.00454739,3226.8,3226.7,2.1076445]
[1642436533230,1.08499221,3227.7,3226.7,0.8437]
[1642436533429,1.08499221,3227.7,3226.9,0.77445]
[1642436533629,0.00454738,3227.6,3226.9,0.77445]
[1642436534029,0.00397896,3227.5,3226.9,0.77445]
[1642436534229,1.49015427,3227.4,3226.9,0.77445]
[1642436534428,0.00341054,3227.4,3226.9,2.17044754]
[1642436534669,0.00284211,3227.3,3227.0,0.373]
[1642436535067,3.643,3228.2,3227.0,0.373]
[1642436535068,0.00227369,3227.2,3227.0,0.373]
[1642436535266,0.00227369,3227.2,3227.0,1.92169]
[1642436535467,0.00170527,3227.1,3227.0,1.92169]
[1642436536069,0.00170527,3227.1,3227.0,1.64508989]
[1642436536269,0.00170527,3227.1,3227.0,0.373]
[1642436536572,0.04790613,3227.0,3226.5,0.373]
[1642436536775,0.04790613,3227.0,3226.2,3.8217]
[1642436536970,0.00113684,3227.0,3226.6,0.00113685]
[1642436537171,1.3607602,3226.9,3226.3,0.00284212]
[1642436537372,1.22345926,3226.6,3226.3,0.00284212]
[1642436537773,1.22345926,3226.6,3226.0,0.00454739]
[1642436537971,1.22345926,3226.6,3225.7,0.00625266]
[1642436538426,1.54515718,3226.1,3225.7,0.00625266]
[1642436539026,3.9366,3226.8,3225.8,0.77468]
[1642436539326,3.9366,3226.8,3225.9,0.00511582]
[1642436539327,4.2366,3226.8,3225.9,0.00511582]
[1642436539727,3.9366,3226.8,3225.6,0.00682109]
[1642436539927,3.9366,3226.8,3225.4,0.00795793]
[1642436540126,3.9366,3226.8,3225.6,0.77476]
[1642436540127,1.18915622,3225.7,3225.6,0.77476]
[1642436540329,1.18915622,3225.7,3225.4,0.00795793]
[1642436540530,1.18915622,3225.7,3225.6,0.00682109]
[1642436540730,1.18915622,3225.7,3225.1,0.0096632]
[1642436540933,4.87467606,3226.7,3225.1,0.0096632]
[1642436540934,0.77495,3226.2,3225.1,0.0096632]
[1642436541128,7.4804,3226.6,3225.2,0.373]
[1642436541527,7.4804,3226.6,3225.3,0.25529551]
[1642436541731,3.6024,3226.6,3225.4,0.373]
[1642436541927,1.19527251,3226.6,3225.4,0.61586938]
[1642436542171,0.00113684,3227.0,3226.3,2.03822289]
[1642436542371,0.00113684,3227.0,3226.4,0.373]
[1642436542569,0.00113684,3227.0,3226.4,0.3752737]
[1642436542769,0.00113684,3227.0,3226.5,0.00170528]
[1642436542970,0.00113684,3227.0,3226.6,0.373]
[1642436543176,0.00113684,3227.0,3226.8,1.3153559]
[1642436543578,0.00113684,3227.0,3226.6,1.14752]
[1642436545479,0.00113684,3227.0,3226.7,1.39765087]
[1642436545679,0.00113684,3227.0,3226.9,1.54879]
[1642436545931,10.59541792,3227.9,3227.0,7.2]
[1642436545932,7.6929,3227.9,3227.0,7.2]
[1642436546139,7.6929,3227.9,3227.1,0.373]
[1642436546433,0.00454739,3227.8,3227.1,0.373]
[1642436546834,1.49379637,3227.7,3227.2,1.48897277]
[1642436547233,0.00341054,3227.6,3227.2,1.48897277]
[1642436547436,0.00341054,3227.6,3227.2,2.26336277]
[1642436547635,0.00284212,3227.5,3227.2,1.52587897]
[1642436547833,0.00284212,3227.5,3227.2,1.48897277]
[1642436548034,0.0022737,3227.4,3227.2,1.48897277]
[1642436548436,0.00170527,3227.3,3227.2,1.48897277]
[1642436549235,0.00170527,3227.3,3227.2,0.77439]
[1642436549435,0.00170527,3227.3,3226.7,0.41987461]
[1642436549868,0.00113685,3227.2,3226.8,0.00113684]
[1642436550272,1.46992734,3226.9,3226.8,0.00113684]
[1642436551500,1.46992734,3226.9,3226.2,0.00454739]
[1642436551676,1.46992734,3226.9,3225.9,0.00625266]
[1642436551877,4.28410752,3226.9,3225.9,0.00625266]
[1642436552077,1.46992734,3226.9,3226.2,1.16402622]
[1642436552279,1.46992734,3226.9,3226.2,1.93867622]
[1642436552477,3.9395,3227.1,3226.3,0.00397896]
[1642436553077,3.9395,3227.1,3226.3,0.37697896]
[1642436553314,0.00113685,3227.2,3226.3,0.37697896]
[1642436553518,0.00113685,3227.2,3226.4,0.00341054]
[1642436553719,0.00113685,3227.2,3226.5,0.77458]
[1642436554026,1.45240972,3227.2,3226.6,0.00227369]
[1642436554422,0.00113685,3227.2,3226.6,0.00227369]
[1642436554820,0.00113685,3227.2,3226.6,3.64205799]
[1642436555026,0.00113685,3227.2,3226.7,0.373]
[1642436555223,0.00113685,3227.2,3226.7,0.37470527]
[1642436555423,0.00113685,3227.2,3226.8,0.00113684]
[1642436555823,0.00113685,3227.2,3227.0,1.43532614]
[1642436557676,0.77448,3228.0,3226.7,0.373]
[1642436557677,2.02915847,3226.8,3226.7,0.373]
[1642436558079,2.02915847,3226.8,3226.7,0.67470528]
[1642436558778,2.02915847,3226.8,3226.7,2.44913528]
[1642436558978,0.00454738,3227.8,3227.0,1.54856]
[1642436559184,0.00454738,3227.8,3227.1,0.373]
[1642436559377,0.00397896,3227.7,3227.1,0.373]
[1642436559781,0.00341053,3227.6,3227.4,1.53459209]
[1642436559980,0.00341053,3227.6,3227.4,1.90759209]
[1642436560179,0.00284211,3227.5,3227.4,2.20759209]
[1642436561024,0.00284211,3227.5,3227.4,0.373]
[1642436563234,0.00284211,3227.5,3226.7,0.00170528]
[1642436563630,0.00284211,3227.5,3225.7,4.0959]
[1642436563631,0.00227369,3227.4,3226.6,0.0022737]
[1642436563829,0.00227369,3227.4,3226.1,0.00511582]
[1642436564030,2.64768565,3227.1,3226.4,1.26235434]
[1642436564246,2.59768565,3227.1,3226.4,1.26235434]
[1642436564592,2.73557214,3227.6,3226.5,0.00284213]
[1642436564593,0.00341053,3227.6,3226.5,0.00284213]
[1642436564969,0.00284211,3227.5,3226.5,0.00284213]
[1642436565368,1.22191408,3227.3,3226.5,0.00284213]
[1642436565569,1.22191408,3227.3,3226.6,1.54889]
[1642436565772,0.00113684,3227.2,3226.7,2.7479868]
[1642436565974,0.00113684,3227.2,3226.8,0.373]
[1642436566173,0.00397896,3227.7,3226.8,1.37413685]
[1642436566371,0.00397896,3227.7,3226.8,2.01163782]
[1642436566574,3.7723,3228.4,3226.8,2.01163782]
[1642436566575,0.00341053,3227.6,3226.8,0.37413685]
[1642436566776,0.00341053,3227.6,3227.1,0.77431]
[1642436566977,0.00284211,3227.5,3227.1,0.77431]
[1642436567178,1.27266491,3227.5,3227.1,1.07431]
[1642436567374,0.00227369,3227.4,3227.1,1.07431]
[1642436567775,1.2698228,3227.5,3227.1,1.07431]
[1642436567776,0.00170526,3227.3,3227.1,1.07431]
[1642436568177,0.00113684,3227.2,3227.1,1.07431]
[1642436568421,0.00113684,3227.2,3227.1,0.3]
[1642436568619,0.00113684,3227.2,3226.8,0.00113685]
[1642436568620,0.03365071,3227.1,3226.8,0.00113685]
[1642436568821,0.00113684,3227.2,3226.8,0.77560685]
[1642436569021,0.00113684,3227.2,3226.8,1.07560685]
[1642436569223,0.00113684,3227.2,3226.8,0.30113685]
[1642436570024,0.00113684,3227.2,3226.8,0.00113685]
[1642436570224,0.00113684,3227.2,3226.9,0.77447]
[1642436570424,0.00113684,3227.2,3226.8,0.00113685]
[1642436571428,0.00113684,3227.2,3226.8,0.77560685]
[1642436571626,0.00113684,3227.2,3226.8,1.07560685]
[1642436572675,0.00113684,3227.2,3226.8,1.34850685]
[1642436572878,0.00113684,3227.2,3226.8,2.02150685]
[1642436573177,0.00113684,3227.2,3226.8,3.02150685]
[1642436573575,0.00113684,3227.2,3226.8,2.02150685]
[1642436573778,0.00113684,3227.2,3227.0,1.54865]
[1642436573978,0.00113684,3227.2,3227.1,0.373]
[1642436574178,0.00113684,3227.2,3227.1,0.70856464]
[1642436574879,0.00113684,3227.2,3227.1,2.25722464]
[1642436575183,0.00113684,3227.2,3227.1,4.51160322]
[1642436576019,1.48729841,3228.3,3227.2,13.0]
[1642436576223,1.48729841,3228.3,3227.3,1.766443]
[1642436576423,0.00568423,3228.2,3227.7,0.6966897]
[1642436576624,0.00568423,3228.2,3227.8,0.373]
[1642436576823,0.00511581,3228.1,3227.9,1.1235899]
[1642436577024,0.00511581,3228.1,3228.0,0.373]
[1642436577225,1.48729841,3228.3,3228.0,0.373]
[1642436577524,0.00568423,3228.2,3228.0,0.673]
[1642436577928,0.00511581,3228.1,3228.0,1.673]
[1642436580376,0.00511581,3228.1,3228.0,0.373]
[1642436580573,0.00511581,3228.1,3227.5,0.373]
[1642436580574,2.65402014,3228.1,3227.5,0.373]
[1642436580772,2.65402014,3228.1,3227.5,0.673]
[1642436580975,0.00454739,3228.0,3227.5,0.673]
[1642436581375,0.00397896,3227.9,3227.5,0.673]
[1642436581777,4.06737236,3228.1,3227.5,0.373]
[1642436581778,0.00341054,3227.8,3227.5,0.373]
[1642436582177,0.00284212,3227.7,3227.5,0.373]
[1642436582577,1.40768236,3227.6,3227.5,0.373]
[1642436583429,1.40768236,3227.6,3226.8,1.03505369]
[1642436583631,1.40768236,3227.6,3226.8,0.00113685]
[1642436583830,1.40768236,3227.6,3226.9,0.00170527]
[1642436583831,0.00170527,3227.5,3226.9,0.00170527]
[1642436584031,0.00170527,3227.5,3227.0,1.5084591]
[1642436584230,0.00113685,3227.4,3227.0,1.5084591]
[1642436584432,0.00113685,3227.4,3227.0,0.7744]
[1642436584631,0.00170527,3227.5,3227.0,0.7744]
[1642436584831,0.00170527,3227.5,3226.8,0.03632965]
[1642436585035,0.00170527,3227.5,3226.8,0.00227369]
[1642436585036,0.05053519,3227.4,3226.8,0.00227369]
[1642436585236,0.05053519,3227.4,3226.9,0.00170527]
[1642436585237,0.77571685,3227.4,3226.9,0.00170527]
[1642436585434,1.34637051,3226.8,3226.5,0.00397897]
[1642436585638,1.34637051,3226.8,3226.5,0.77456]
[1642436586035,1.34637051,3226.8,3226.6,0.00341054]
[1642436586236,6.61270433,3227.3,3226.6,0.00341054]
[1642436586635,6.61270433,3227.3,3226.3,0.00511581]
[1642436587083,6.61270433,3227.3,3226.6,0.77452]
[1642436587278,7.81071436,3227.3,3226.6,0.77452]
[1642436587478,3.84691436,3227.3,3226.7,0.00284212]
[1642436587877,2.64890433,3227.2,3226.7,0.00284212]
[1642436588685,2.82612485,3227.1,3226.7,0.00284212]
[1642436588882,2.64890433,3227.2,3226.7,0.00284212]
[1642436588883,1.12723792,3226.8,3226.7,0.00284212]
[1642436589083,2.64890433,3227.2,3226.4,0.00454739]
[1642436589583,1.12766193,3226.9,3226.4,0.00454739]
[1642436589784,2.64890433,3227.0,3226.4,0.00454739]
[1642436590185,2.64890433,3227.0,3226.4,1.55356739]
[1642436590388,2.64890433,3227.0,3226.5,0.44951145]
[1642436590586,0.00113685,3227.4,3226.8,0.02012499]
[1642436590828,0.00113685,3227.4,3226.9,1.61082606]
[1642436591023,0.00113685,3227.4,3227.0,0.373]
[1642436591226,0.00113685,3227.4,3227.0,0.32413685]
[1642436591825,0.00113685,3227.4,3227.1,0.07651145]
[1642436592026,1.48729841,3228.4,3227.3,18.45]
[1642436592230,1.48729841,3228.4,3227.4,6.08707194]
[1642436592426,1.48729841,3228.4,3227.6,0.54182]
[1642436592427,0.00170527,3227.7,3227.6,0.54182]
[1642436592625,2.23094762,3228.6,3228.1,1.34921003]
[1642436592829,3.84220581,3229.1,3228.4,9.5]
[1642436593128,3.84220581,3229.1,3228.5,0.5018]
[1642436593334,3.84220581,3229.1,3228.9,1.51456757]
[1642436593632,1.6415493,3229.6,3229.0,0.673]
[1642436593830,1.6415493,3229.6,3229.0,0.7064025]
[1642436594029,0.00852635,3229.2,3229.0,2.4802825]
[1642436594231,0.00852635,3229.2,3229.0,1.4802825]
[1642436594430,0.00795792,3229.1,3229.0,2.4802825]
[1642436594888,1.6415493,3229.6,3229.2,0.01695698]
[1642436595087,1.6415493,3229.6,3229.4,0.77371]
[1642436595287,0.0022737,3229.5,3229.4,1.1795786]
[1642436595484,0.0022737,3229.5,3229.4,2.4795786]
[1642436595684,0.0022737,3229.5,3229.4,6.3295786]
[1642436595889,3.9047,3230.2,3229.5,10.35]
[1642436596086,7.643,3230.6,3229.7,0.77366]
[1642436596285,0.00341054,3230.1,3229.8,0.373]
[1642436596484,0.00341054,3230.1,3229.8,0.41147447]
[1642436596684,0.00284212,3230.0,3229.8,1.41147447]
[1642436596888,0.00284212,3230.0,3229.9,1.45069468]
[1642436597103,0.00227369,3229.9,3229.7,0.373]
[1642436597290,0.00284212,3230.0,3229.2,0.373]
[1642436597489,0.00170527,3229.8,3229.2,1.14111968]
[1642436597688,2.76292186,3230.5,3229.3,0.00113685]
[1642436597689,0.00227369,3229.9,3229.3,0.00113685]
[1642436597889,1.35185285,3229.4,3229.3,0.00113685]
[1642436598629,1.35185285,3229.4,3229.3,0.77491685]
[1642436598833,1.35185285,3229.4,3229.3,0.00113685]
[1642436599635,1.35185285,3229.4,3229.3,0.00913685]
[1642436602176,1.35185285,3229.4,3229.2,0.40563595]
[1642436602376,1.35185285,3229.4,3229.3,1.54762]
[1642436602575,1.35185285,3229.4,3229.2,1.10207515]
[1642436602576,1.35185285,3229.4,3229.2,0.40563595]
[1642436602973,1.35185285,3229.4,3228.9,0.77398]
[1642436603176,1.35185285,3229.4,3228.9,2.66287224]
[1642436603380,1.35185285,3229.4,3229.0,2.82272748]
[1642436603584,1.53286054,3230.1,3229.0,2.85467283]
[1642436603781,1.53286054,3230.1,3229.2,0.03827142]
[1642436603980,0.00397897,3230.0,3229.3,0.373]
[1642436604179,0.00397897,3230.0,3229.3,0.48446143]
[1642436604378,0.00341054,3229.9,3229.4,0.07651145]
[1642436604583,1.51034719,3229.8,3229.6,1.27586037]
[1642436604779,1.51318931,3229.8,3229.7,0.373]
[1642436604979,1.51034719,3229.8,3229.7,0.41273216]
[1642436605181,1.51034719,3229.8,3229.7,0.673]
[1642436605580,1.53286054,3230.2,3229.7,1.70356017]
[1642436605833,2.9045052,3230.3,3229.7,0.70356017]
[1642436606033,0.00454739,3230.1,3229.7,1.673]
[1642436606238,0.00511581,3230.2,3229.7,0.673]
[1642436606535,0.00511581,3230.2,3229.7,1.673]
[1642436606737,1.16503984,3229.9,3229.7,1.4467]
[1642436606936,1.16503984,3229.9,3229.7,2.4467]
[1642436607239,0.00284212,3229.8,3229.7,2.4467]
[1642436607435,0.00284212,3229.8,3229.7,2.48057414]
[1642436607636,0.00284212,3229.8,3229.7,2.4467]
[1642436608239,0.00284212,3229.8,3229.7,1.1467]
[1642436609776,0.00284212,3229.8,3229.7,1.4467]
[1642436609975,0.00284212,3229.8,3229.7,2.92281233]
[1642436610174,1.53286054,3230.2,3229.7,2.92281233]
[1642436610374,1.53286054,3230.2,3229.7,1.62281233]
[1642436610675,0.00170527,3230.1,3229.8,1.0]
[1642436610876,0.00170527,3230.1,3229.7,2.54981233]
[1642436611076,1.28430774,3230.0,3229.7,2.54981233]
[1642436611504,0.00227369,3230.2,3229.8,1.3692723]
[1642436611682,1.53286054,3230.3,3230.1,8.3]
[1642436611880,1.53286054,3230.3,3230.2,0.40973376]
[1642436612082,1.53286054,3230.3,3230.2,0.373]
[1642436612280,1.53286054,3230.3,3230.2,1.82012566]
[1642436612484,1.53286054,3230.3,3230.2,1.85355192]
[1642436612683,1.09769036,3230.6,3230.2,0.70642626]
[1642436612882,1.09769036,3230.6,3230.3,0.77355]
[1642436613082,0.00170527,3230.5,3230.4,0.373]
[1642436613533,0.00170527,3230.5,3230.4,0.673]
[1642436616134,0.00170527,3230.5,3230.4,0.373]
[1642436616334,0.00170527,3230.5,3230.4,0.673]
[1642436616734,0.00170527,3230.5,3230.4,0.373]
[1642436618692,0.00170527,3230.5,3230.4,1.0531]
[1642436618892,1.53286054,3231.0,3230.6,0.02115987]
[1642436619097,1.53286054,3231.0,3230.7,1.06909]
[1642436619290,0.0022737,3230.9,3230.7,1.06909]
[1642436619492,0.0022737,3230.9,3230.8,0.03102612]
[1642436619692,1.53286054,3231.0,3230.8,0.40402612]
[1642436619893,4.59858161,3231.5,3230.9,12.02677316]
[1642436620092,4.59858161,3231.5,3231.0,2.0689645]
[1642436620293,0.00397897,3231.2,3231.1,0.03999654]
[1642436620494,2.29929081,3231.8,3231.1,12.97819654]
[1642436620695,2.29929081,3231.8,3231.2,0.0366348]
[1642436620929,0.00113684,3231.4,3231.3,0.40513845]
[1642436621130,2.29929081,3231.8,3231.7,1.17299113]
[1642436621330,2.29929081,3231.8,3231.7,1.57716187]
[1642436621529,3.06572107,3232.0,3231.8,8.5]
[1642436621733,3.06572107,3232.0,3231.9,0.373]
[1642436621928,3.06572107,3232.0,3231.9,1.373]
[1642436622229,1.35224778,3232.1,3231.9,0.373]
[1642436623030,2.70195873,3232.1,3231.9,0.373]
[1642436623631,1.35224778,3232.1,3231.9,0.373]
[1642436623832,1.35224778,3232.1,3232.0,0.54163057]
[1642436624236,1.35622675,3232.1,3232.0,0.54163057]
[1642436627279,1.35622675,3232.1,3230.9,3.95128448]
[1642436627280,3.35124499,3232.1,3230.9,3.95128448]
[1642436627481,2.77247721,3232.1,3231.0,2.63615391]
[1642436627681,0.00341055,3232.0,3231.1,1.54673]
[1642436627883,0.00341055,3232.0,3231.1,1.58204634]
[1642436628084,0.00284212,3231.9,3231.2,0.00113684]
[1642436628530,2.77576431,3232.3,3231.2,0.00113684]
[1642436628531,0.0022737,3231.8,3231.2,0.00113684]
[1642436628828,0.00170527,3231.7,3230.8,0.00341054]
[1642436629228,1.30984197,3231.3,3230.8,0.00341054]
[1642436629432,1.30984197,3231.3,3230.8,1.39708059]
[1642436629628,1.30984197,3231.3,3230.8,2.69708059]
[1642436629827,1.30984197,3231.3,3230.9,0.77637211]
[1642436630327,1.30984197,3231.3,3231.0,0.00227369]
[1642436631330,2.71319558,3231.2,3231.0,0.00227369]
[1642436632586,2.71319558,3231.2,3230.8,0.00341054]
[1642436632785,4.26065558,3231.2,3230.8,0.00341054]
[1642436633887,4.26065558,3231.2,3230.6,1.58797649]
[1642436633888,4.26065558,3231.2,3230.7,0.00397896]
[1642436634490,2.64734578,3230.8,3230.7,0.00397896]
[1642436634687,1.53949775,3230.8,3230.7,0.00397896]
[1642436635830,2.76692937,3230.8,3230.5,0.00511581]
[1642436639784,2.76692937,3230.8,3230.4,1.59366072]
[1642436639981,2.76692937,3230.8,3230.5,0.00511581]
[1642436640981,3.54069937,3230.8,3230.5,0.00511581]
[1642436641180,3.54069937,3230.8,3230.5,3.780704]
[1642436641580,3.54069937,3230.8,3230.6,0.00454738]
[1642436641581,1.53949775,3230.8,3230.6,0.00454738]
[1642436641780,1.54011166,3231.2,3230.6,0.00454738]
[1642436641981,3.9004,3231.3,3230.6,0.00454738]
[1642436641982,1.54011166,3231.1,3230.6,0.00454738]
[1642436642583,1.54011166,3231.1,3230.6,1.35540785]
[1642436642785,1.54011166,3231.1,3230.7,0.77357]
[1642436642985,1.54011166,3231.1,3230.7,1.87494896]
[1642436643186,4.99752068,3231.3,3230.8,0.00341054]
[1642436643429,1.09712068,3231.3,3230.8,0.00341054]
[1642436643629,1.54011166,3231.5,3230.8,0.00341054]
[1642436643831,1.54011166,3231.5,3231.0,0.77349]
[1642436644031,1.54011166,3231.5,3231.1,1.46898494]
[1642436644237,1.54011166,3231.5,3231.1,1.47069021]
[1642436644435,1.54011166,3231.5,3231.2,0.00113684]